Cogmind - Beta 9.2 @@@ ROGUE MODE // 2019.12.10 @ 20:59:04 Player: Cipherpunk Result: Destroyed by D-53 Grenadier with Mini Grenade Launcher Performance ------------- Evolutions (0) 0 Regions Visited (2) 400 Robots Destroyed (22) 110 Value Destroyed (534) 534 Prototype IDs (2) 40 Alien Tech Used (0) 0 Bonus (0) 0 TOTAL SCORE: 1084 Bonus ------- None Cogmind --------- Core Integrity 0/250 Matter 298/300 Energy 36/100 System Corruption 5% Temperature Cool (38) Movement Rolling (110) Ox1 Location -10/Mines Parts ------- > --- POWER (1) -------- (None) > --- PROPULSION (2) --- Compact Wheel Compact Wheel > --- UTILITY (2) ------ Medium Storage Unit High-capacity Storage Unit > --- WEAPON (2) ------- Spread Laser Spread Laser > --- INVENTORY (16) --- Light Nuclear Core Aluminum Leg Aluminum Leg Aluminum Leg Aluminum Leg Compact Wheel Improved Heat Sink Improved Sensor Array Propulsion Shielding Hacking Suite Hacking Suite Hacking Suite Beam Cannon Signal Generator Peak State ------------ > --- POWER ------------ Improved Ion Engine > --- PROPULSION ------- Compact Wheel Compact Wheel > --- UTILITY ---------- Medium Storage Unit High-capacity Storage Unit > --- WEAPON ----------- Spread Laser Spread Laser > --- INVENTORY -------- Light Nuclear Core Light Nuclear Core Aluminum Leg Aluminum Leg Aluminum Leg Compact Wheel Improved Heat Sink Medium Storage Unit Improved Sensor Array Hacking Suite Hacking Suite Hacking Suite Spread Laser Spread Laser Beam Cannon Datajack [Rating: 13] Favorites ----------- Power Improved Ion Engine Engine Improved Ion Engine Propulsion Compact Wheel Wheel Compact Wheel Utility High-capacity Storage Unit Storage High-capacity Storage Unit Weapon Spread Laser Energy Gun Spread Laser Ballistic Gun Light Assault Rifle Build | -11 -10 -10 ------- Run | Scr Mat Min Slots Evolved . | . . . Power . | . . . Propulsion . | . . . Utility . | . . . Weapon . | . . . Parts Attached 21 | 6 12 3 Power 2 | 1 1 . Engine 2 | 1 1 . Core . | . . . Reactor . | . . . Propulsion 5 | 2 2 1 Treads . | . . . Leg . | . . . Wheel 5 | 2 2 1 Hover . | . . . Flight . | . . . Utility 3 | 1 2 . Device . | . . . Storage 3 | 1 2 . Processor . | . . . Hackware . | . . . Protection . | . . . Artifact . | . . . Weapon 11 | 2 7 2 Energy Gun 9 | 1 6 2 Energy Cannon . | . . . Ballistic Gun 2 | 1 1 . Ballistic Cannon . | . . . Launcher . | . . . Special Weapon . | . . . Impact Weapon . | . . . Slashing Weapon . | . . . Piercing Weapon . | . . . Special Melee Weapon . | . . . Unidentified Prototypes . | . . . Parts Lost 10 | . 7 3 Power 1 | . . 1 Propulsion 2 | . 2 . Utility . | . . . Weapon 7 | . 5 2 Highest Loss Streak 3 | . 2 3 Average Slot Usage (%) 97 | . 98 93 Engine 13 | . 14 10 Wheel 27 | . 27 26 Storage 27 | . 27 28 Energy Gun 15 | . 14 26 Ballistic Gun 11 | . 12 . Naked Turns . | . . . Heaviest Build 53 | 10 53 53 Greatest Support 32 | 32 32 32 Greatest Overweight (x) 2 | . 2 2 Average Overweight (x) . | . 1 1 Largest Inventory Capacity 16 | 6 16 16 Average Capacity 14 | 5 14 16 Most Carried 16 | 6 16 16 Average Carried 12 | 4 12 15 Final Capacity 16 | 6 16 16 Final Carried 16 | 6 16 14 Class Distribution -------------------- 100% | Mutant Dominant Class ---------------- Mutant | -10/Materials Mutant | -10/Mines Resources | -11 -10 -10 ----------- Run | Scr Mat Min Matter Collected 547 | 188 336 23 Remotely . | . . . Salvage Created 673 | . 651 22 Parts 39 | . 39 . Haulers Intercepted 2 | . 2 . Recyclers Shooed . | . . . Parts Field Recycled . | . . . Retrieved Matter . | . . . Parts Self-Destructed . | . . . Prevented . | . . . Kills | -11 -10 -10 ------- Run | Scr Mat Min Combat Hostiles Destroyed 16 | . 13 3 Guns 16 | . 13 3 Classes Destroyed 5 | . 4 1 Worker 1 | . 1 . Hauler 2 | . 2 . Operator 3 | . 3 . Grunt 13 | . 13 . Assembled 3 | . . 3 Best Kill Streak 3 | . 3 3 Combat Bots Only 3 | . 2 3 Max Kills in Single Turn 1 | . 1 1 Gunslinging . | . . . Exploded . | . . . Melee . | . . . Uniques/NPCs Destroyed . | . . . Combat | -11 -10 -10 -------- Run | Scr Mat Min Damage Taken 1110 | . 769 341 Core 278 | . 147 131 Absorbed by Shields . | . . . Core Remaining (%) 100 | 100 . . Volleys Fired 83 | . 76 7 Largest 2 | . 2 2 Hottest 130 | . 130 130 Shots Fired 157 | . 143 14 Gun 157 | . 143 14 Cannon . | . . . Launcher . | . . . Special . | . . . Kinetic 100 | . 100 . Thermal 57 | . 43 14 Explosive . | . . . Electromagnetic . | . . . Robot Hit Streak 15 | . 15 10 Robot Miss Streak 5 | . 4 5 Penetration Max . | . . . Secondary Targets 4 | . 2 2 Max Gunslinging Chain 1 | . 1 1 Shots Hit Robots 116 | . 103 13 Core Hits 72 | . 54 18 Critical Hits . | . . . Critical Kills . | . . . Critical Parts Destroyed . | . . . Melee Attacks . | . . . Impact . | . . . Slashing . | . . . Piercing . | . . . Sneak Attacks . | . . . Combat Hostiles . | . . . Follow-up Attacks . | . . . Damage Inflicted 1177 | . 1014 163 Guns 1177 | . 1014 163 Cannons . | . . . Explosions . | . . . Melee . | . . . Ramming . | . . . Kinetic 630 | . 630 . Thermal 547 | . 384 163 Explosive . | . . . Electromagnetic . | . . . Impact . | . . . Slashing . | . . . Piercing . | . . . Highest Corruption 5 | . . 5 Average Corruption 4 | . . 4 Corruption Purged . | . . . Effects 2 | . . 2 Parts Rejected 1 | . . 1 Targeting Errors 1 | . . 1 Overload Shots . | . . . Overflow Damage . | . . . Projectiles . | . . . Explosions . | . . . Melee . | . . . Knockbacks . | . . . Impact . | . . . Kinetic . | . . . Secondary . | . . . Self-Inflicted Damage . | . . . Shots . | . . . Rammed . | . . . Targets Rammed . | . . . Kicked . | . . . Crushed . | . . . Highest Temperature 299 | . 160 299 Average Temperature 71 | . 59 143 Received Heat Transfer 435 | . 417 18 Siege Activations . | . . . Robots Corrupted . | . . . Combat Hostiles . | . . . Parts Fried . | . . . Impact Corruptions . | . . . Robots Melted . | . . . Combat Hostiles . | . . . Parts Melted . | . . . Heat Transferred 942 | . 742 200 Parts Sabotaged . | . . . Parts Stolen . | . . . Parts Stripped . | . . . Power Chain Reactions . | . . . Missiles Intercepted . | . . . Alert | -11 -10 -10 ------- Run | Scr Mat Min Peak Influence 160 | . 160 25 Average Influence 40 | . 44 16 Maximum Alert Level . | . . . Low Security (%) 100 | 100 100 100 Level 1 . | . . . Level 2 . | . . . Level 3 . | . . . Level 4 . | . . . Level 5 . | . . . High Security . | . . . Max Security . | . . . Squads Dispatched 6 | . 5 1 Investigation 2 | . 2 . Extermination . | . . . Reinforcement 3 | . 3 . Assault 1 | . . 1 Garrison . | . . . Intercept . | . . . Construction Impeded . | . . . Haulers Reinforced . | . . . Stealth | -11 -10 -10 --------- Run | Scr Mat Min Distress Signals . | . . . Communications Jammed . | . . . Distress Signals . | . . . Times Spotted 47 | . 31 16 Peak Tracking Total 7 | . 4 7 Tactical Retreats 1 | . 1 . Traps | -11 -10 -10 ------- Run | Scr Mat Min Traps Triggered 3 | . 3 . Indirectly . | . . . Trap Hack Attempts . | . . . Triggered . | . . . Disarmed . | . . . Reprogrammed . | . . . Reused . | . . . Traps Extracted . | . . . Installed . | . . . Triggered . | . . . Machines | -11 -10 -10 ---------- Run | Scr Mat Min Machines Disabled . | . . . Max in Single Turn . | . . . Machines Sabotaged . | . . . Garrisons Compromised . | . . . Overloaded Fab Kills . | . . . Fab Network Shutdowns . | . . . Hacking | -11 -10 -10 --------- Run | Scr Mat Min Machines Accessed 6 | . 6 . Terminals 4 | . 4 . Fabricators . | . . . Repair Stations . | . . . Recycling Units 2 | . 2 . Scanalyzers . | . . . Garrison Access . | . . . Total Hacks 27 | . 27 . Successful 17 | . 17 . Failed 10 | . 10 . Catastrophic 2 | . 2 . Database Lockouts . | . . . Manual 15 | . 15 . Terminals 23 | . 23 . Fabricators . | . . . Repair Stations . | . . . Recycling Units 4 | . 4 . Scanalyzers . | . . . Garrison Access . | . . . Terminal Hacks 11 | . 11 . Record 2 | . 2 . Prototype ID Bank 1 | . 1 . Alert Level 1 | . 1 . Unreport Threat 1 | . 1 . Locate Traps 2 | . 2 . Patrol Status 1 | . 1 . Zone Layout 3 | . 3 . Fabricator Hacks . | . . . Repair Station Hacks . | . . . Recycling Unit Hacks 1 | . 1 . Retrieve Components 1 | . 1 . Scanalyzer . | . . . Garrison Access Hacks . | . . . Unauthorized Hacks 11 | . 11 . Terminals 5 | . 5 . Assimilate 1 | . 1 . Botnet 4 | . 4 . Fabricators . | . . . Repair Stations . | . . . Recycling Units . | . . . Scanalyzers . | . . . Garrison Access . | . . . Data Cores Recovered . | . . . Used . | . . . Hacking Detections 4 | . 4 . Full Trace Events 1 | . 1 . Feedback Events . | . . . Feedback Blocked . | . . . Robot Schematics Acquired . | . . . Robots Built . | . . . Matter . | . . . Time . | . . . Total Robot Build Rating . | . . . Part Schematics Acquired . | . . . Parts Built . | . . . Matter . | . . . Time . | . . . Total Part Build Rating . | . . . Parts Repaired . | . . . Time . | . . . Parts Recycled . | . . . Recycled Matter . | . . . Retrieved Matter . | . . . Retrieved Components 1 | . 1 . Parts Scanalyzed . | . . . Part Schematics Acquired . | . . . Parts Damaged . | . . . Bothacking | -11 -10 -10 ------------ Run | Scr Mat Min Used RIF Installer . | . . . Robots Hacked . | . . . Non-combat . | . . . Combat . | . . . Robot Hacks Applied . | . . . Relay Couplers Released . | . . . Robots Rewired . | . . . Allies Hacked . | . . . Hacks Repelled . | . . . Allies | -11 -10 -10 -------- Run | Scr Mat Min Total Allies 1 | . . 1 Largest Group 1 | . . 1 Highest-Rated Group 31 | . . 31 Highest-Rated Ally 31 | . . 31 Total Orders . | . . . Ally Attacks 5 | . . 5 Total Damage 64 | . . 64 Kills 2 | . . 2 Allies Corrupted . | . . . Allies Melted . | . . . Intel | -11 -10 -10 ------- Run | Scr Mat Min Robot Analysis Total . | . . . Derelict Logs Recovered . | . . . Drone Launches . | . . . Drone Recoveries . | . . . Exploration | -11 -10 -10 ------------- Run | Scr Mat Min Turns Passed 1439 | 62 1271 106 Spaces Moved 981 | 48 868 65 Core 1 | 1 . . Treads . | . . . Legs . | . . . Wheels 980 | 47 868 65 Hover . | . . . Flight . | . . . Fastest Speed 50 | 50 100 110 Average Speed 109 | 98 110 110 Slowest Speed 120 | 100 120 120 Overloaded Moves . | . . . Propulsion Burnouts . | . . . Robots Hopped . | . . . Cave-ins Triggered . | . . . Exploration Rate (%) 34 | 4 89 11 Regions Visited 2 Branch Regions 1 Pre-discovered Areas . | . . . Known Exits Taken . | . . . Unknown Exits Taken 2 | 1 1 . Scrap Searched . | . . . Spaces Dug . | . . . Terrain Destroyed . | . . . Melee . | . . . Projectile . | . . . AOE . | . . . Actions | -11 -10 -10 --------- Run | Scr Mat Min Total 1206 | 59 1059 88 Wait 73 | . 62 11 Move 979 | 47 867 65 Hop . | . . . Pick Up 34 | 6 27 1 Fast Attach 11 | 6 4 1 Attach 8 | . 6 2 Detach 1 | . 1 . Swap 2 | . 2 . Drop 15 | . 14 1 Fire 83 | . 76 7 Melee . | . . . Ram . | . . . Kick . | . . . Crush . | . . . Escape Stasis . | . . . Rewire . | . . . Trap . | . . . Miscellaneous . | . . . Route ------- -11/Scrapyard -10/Materials (discovered 5 exits: [*Mat x3] / [*Min x2]) -10/Mines History --------- Turn | Location | Event 9 | -11/Scrapyard | Discovered new exit (range 15) 63 | -11/Scrapyard | Entered Materials 124 | -10/Materials | Discovered new exit (range 14) 171 | -10/Materials | Discovered new exit (range 9) 312 | -10/Materials | Build established: Mutant 430 | -10/Materials | Discovered new exit (range 15) 566 | -10/Materials | Discovered new exit (range 8) 1067 | -10/Materials | Discovered new exit (range 8) 1204 | -10/Materials | Core integrity fell below 50% 1334 | -10/Materials | Entered Mines 1368 | -10/Mines | Met a Derelict testing a Signal Generator 1375 | -10/Mines | Assembled infested the area 1378 | -10/Mines | Found Signal Generator 1380 | -10/Mines | Assisted by a Guerilla fighting off Assembled 1407 | -10/Mines | Met a Derelict bent on vengeance 1437 | -10/Mines | Core integrity fell below 20% 1440 | -10/Mines | Destroyed by D-53 Grenadier with Mini Grenade Launcher Last Messages --------------- 01422_ Acquired Com. Wheel. 01423_ HV Slug penetrates Wall. 01423_ Acquired 7 matter. 01424_ Acquired 8 matter. 01426_ G-34 Mercenary destroyed. 01427_ HV Slug penetrates as-92948. 01427_ as-92948 suffers critical hit. 01427_ as-92948 destroyed. 01429_ G-34 Mercenary system corrupted by crushing effect. 01429_ as-36833 destroyed. 01430_ G-34 Mercenary system terminally corrupted. 01430_ HV Slug penetrates as-42869. 01430_ as-42869 suffers critical hit. 01430_ as-42869 knocked back. 01431_ YX-5PI(h) destroyed. 01433_ R-06 Scavenger collects Ion Engine. 01434_ The unstable cave ceiling collapses. 01437_ R-06 Scavenger collects Fission Core. 01438_ Spread Laser destroyed. 01440_ Acquired 8 matter. Map ----- +----------------------------------------------------+ | | | | | | | | | | | | | | | | | | | | | ??????????????????????????????????????? | | ?########?????????????????????????????? | | ?# ###################???????????? | | ?# ##??????????? | | ?# ############# #??????????? | | ?# #???????????# ##?????????? | | ?# #???????????## #?????????? | | ?# #????????????### #???#####?? | | ?########??????????????# ###???# ##? | | ???????????????????????#= #?????# #? | | ???????????????????????#% #?????# #? | | ?????????????????????###= ####??# #? | | ????????????????????## #### #?? | | ????????????????????# % ##?? | | ?????????????????#### #??? | | ??????????a %@ ### ! #??? | | ?????????????????###g ] ## ##??? | | ???????????????????# # # #???? | | ?????????????????????# rdg ## #???? | | ?????????????????????### %##### ##???? | | ???????????????????????m%%%???####????? | | ???????????????????????##=#???????????? | | ????????????????????????# #???????????? | | ????????????????????????# #???????????? | | ????????????????????????" #???????????? | | ????????????????????????# ????????????? | | ????????????????????????? ????????????? | | ????????????????????????? ????????????? | | ?????????????????????????#????????????? | | ??????????????????????????????????????? | | ??????????????????????????????????????? | | ??????????????????????????????????????? | | ??????????????????????????????????????? | | ??????????????????????????????????????? | | ??????????????????????????????????????? | | ??????????????????????????????????????? | | ??????????????????????????????????????? | | ??????????????????????????????????????? | | ??????????????????????????????????????? | | ??????????????????????????????????????? | +----------------------------------------------------+ Best States ------------- Heat Dissipation 25 Energy Generation 12 Energy Capacity 265 Matter Stores 300 Matter Capacity 300 Sight Range 16 Terrain Scan Density 10 Evasion (%) 40 Item Schematics ----------------- None Robot Schematics ------------------ None Fabricated ------------ Nothing Alien Tech Used ----------------- None Achievements -------------- None Challenges ------------ None Game ------ Seed StormShadeInsulator Manual? 0 Play Time 00:25:07 Cumulative 49.9 hours Start 2019.12.10 @ 18:18:46 End 2019.12.10 @ 20:59:04 Sessions 1 Manual Loads 0 Difficulty Rogue Special Mode None Game No. 46 Rogue 46 Adventurer 0 Explorer 0 Win Type - Total 0 Types 0/0/0/0/0/0/0 Lore% 22 Gallery% 42 Achievement% 28 Wizard Run 0 Options --------- ASCII 0 Keyboard 1 Movement Numpad Keybinds 0 Fullscreen 2 Font 18/SmallcapsGlow Map View 76x50 Tactical HUD 1 Map Filters NONE Filters NONE Steam 1 RUN: a101929e-fdd0-4098-8489-6a61f669fafb